[Event "1000GM Schev-G2 March 2024"]
[Site "Santa Clara"]
[Date "2024.03.10"]
[Round "3.3"]
[White "Figueredo Losada, Leonel"]
[Black "Chiang, Jacob"]
[Result "1/2-1/2"]
[ECO "E18"]
[WhiteElo "2325"]
[BlackElo "2154"]
[Annotator "TA"]
[PlyCount "86"]
[EventDate "2024.03.06"]
[EventType "schev"]
[EventCountry "USA"]
[SourceTitle "playchess.com"]
[Source "ChessBase"]
[SourceQuality "1"]
[TimeControl "5400+30"]

{[%evp 17,86,5,55,54,41,50,56,52,52,49,49,37,46,34,27,14,83,32,31,31,99,112,100,34,34,31,33,33,30,14,20,26,35,0,0,3,4,5,10,0,0,0,2,0,13,15,8,8,8,15,15,0,17,12,12,10,23,10,17,0,0,0,0,0,0,1,10,2,4,0,2]} 1. d4 {[%emt 0:04:03]} Nf6 {[%emt 0:00:05]} 2. Nf3 {[%emt 0:00:21]} b6 {[%emt 0:00:17]} 3. g3 {[%emt 0:00:18]} Bb7 {[%emt 0:00:03]} 4. Bg2 {[%emt 0:00:04]} e6 {[%emt 0:00:06]} 5. O-O {[%emt 0:00:07]} Be7 {[%emt 0:00:03]} 6. c4 {[%emt 0:00:11][%cal Bc2c4,Bc4d5][%mdl 32]} O-O {[%emt 0:01:13]} 7. Nc3 {[%emt 0:00:10]} d5 {[%emt 0:00:29]} 8. Ne5 {[%emt 0:00:22]} Nbd7 {[%emt 0:00:45]} 9. Qa4 {[%emt 0:01:59]} c5 {[%emt 0:00:50]} (9... c6 $11) 10. Nxd7 $14 {[%emt 0:01:53]} Nxd7 {[%emt 0:00:42]} 11. cxd5 {[%emt 0:00:42][%cal Od5d6] Threatens to win with d6!} cxd4 {[%emt 0:02:05]} 12. Qxd4 {[%emt 0:01:04] Strongly threatening dxe6. White is slightly better.} Bf6 {[%emt 0:00:25]} 13. Qd2 {[%emt 0:04:16]} Bxc3 {[%emt 0:00:40]} 14. Qxc3 {[%emt 0:03:37] dxe6 is the strong threat.} Bxd5 {[%emt 0:03:15]} 15. Bxd5 {[%emt 0:07:31]} exd5 {[%emt 0:00:06]} 16. Rd1 {[%emt 0:00:09]} Nc5 {[%emt 0:03:25]} (16... Nf6 $11) 17. b3 {[%emt 0:03:42] White is more active.} (17. Be3 $16) 17... Rc8 {[%emt 0:04:01]} 18. Bb2 {[%emt 0:00:43][%csl Gb2][%cal Rc3g7]} f6 {[%emt 0:01:00] [#]} ({Black should play} 18... Ne6 $14 19. Qe5 Rc2) 19. Qf3 $1 $16 {[%emt 0:03:16]} Ne4 {[%emt 0:02:52] [#]} 20. Rac1 {[%emt 0:00:12] Inhibits Rc2.} (20. Qf5 $1 $16) 20... Rxc1 $14 {[%emt 0:01:50]} 21. Bxc1 {[%emt 0:02:08]} Qc7 {[%emt 0:02:09]} 22. Ba3 {[%emt 0:05:41][%cal Od1c1] Black must now prevent Rc1!} Rd8 {[%emt 0:01:52]} 23. Rc1 {[%emt 0:06:27]} Qd7 {[%emt 0:04:55]} 24. Qd3 {[%emt 0:00:13]} h5 {[%emt 0:03:45][%cal Oh5h4]} 25. Qc2 {[%emt 0:03:34]} h4 {[%emt 0:04:13]} 26. Qc7 {[%emt 0:00:03]} (26. gxh4 $2 {loses.} Qg4+ 27. Kf1 Qxh4 $19) 26... hxg3 {[%emt 0:00:56]} 27. hxg3 {[%emt 0:00:04]} Ng5 {[%emt 0:01:20]} 28. Be7 {[%emt 0:00:49]} (28. Qxd7 {simplifies} Rxd7 29. Kg2 d4 30. Rd1) 28... Ne6 {[%emt 0:00:26]} 29. Qxd7 {[%emt 0:00:50]} Rxd7 $11 {[%emt 0:00:05][%mdl 4096] Endgame. KRB-KRN} 30. Ba3 {[%emt 0:01:01]} Rc7 {[%emt 0:02:18]} 31. Rxc7 {[%emt 0:00:04]} Nxc7 {[%emt 0:00:05][%cal Be6c7,Bc7b5,Bb5d6,Bd6f7,Bf7d8,Bd8c6][%mdl 32] KB-KN} 32. Kg2 {[%emt 0:00:06]} Kf7 {[%emt 0:00:25]} 33. Kf3 {[%emt 0:00:19]} Ke6 {[%emt 0:00:45]} 34. Ke3 {[%emt 0:00:17]} Nb5 {[%emt 0:01:16]} 35. Bb2 {[%emt 0:00:49]} Nd6 {[%emt 0:00:18]} 36. g4 {[%emt 0:00:42]} Nf7 {[%emt 0:02:39]} 37. f3 {[%emt 0:00:39]} Nd8 {[%emt 0:00:16] The position is equal.} 38. g5 {[%emt 0:03:49]} Nc6 {[%emt 0:00:29]} 39. gxf6 {[%emt 0:00:17]} gxf6 {[%emt 0:00:04]} 40. Bc3 {[%emt 0:00:02]} Kf5 {[%emt 0:01:25]} 41. Kd3 {[%emt 0:01:04]} b5 {[%emt 0:01:14]} 42. e3 {[%emt 0:02:48]} a6 {[%emt 0:00:34]} 43. a3 {[%emt 0:00:17]} Ke6 {[%emt 0:00:37] Weighted Error Value: White=0.10 (very precise) /Black=0.11 (very precise) .  Mistake:       	White=2     	Black=2      Inaccurate:     	White=1     	---        OK:         	White=7     	Black=14     Best:        	---       	Black=3      Strong:       	White=1     	---} 1/2-1/2

[Event "1000GM Schev-G2 March 2024"]
[Site "Santa Clara"]
[Date "2024.03.10"]
[Round "3.4"]
[White "Alarcon Bahamondez, Roberto Ignacio"]
[Black "Iinuma, Paul Y"]
[Result "0-1"]
[ECO "A12"]
[WhiteElo "2335"]
[BlackElo "2141"]
[Annotator "TA"]
[PlyCount "126"]
[EventDate "2024.03.06"]
[EventType "schev"]
[EventCountry "USA"]
[SourceTitle "playchess.com"]
[Source "ChessBase"]
[SourceQuality "1"]
[TimeControl "5400+30"]

{[%evp 21,126,-18,-7,-24,-10,-26,-22,-27,-24,-33,-18,-24,-16,-34,-13,-55,-33,-32,-8,-30,-26,-37,-26,-56,-54,-60,-58,-84,-61,-72,-56,-83,-105,-97,-75,-92,-96,-97,-101,-131,-133,-149,-149,-137,-137,-130,-62,-68,-71,-110,-105,-140,-135,-138,-130,-128,-79,-221,-217,-225,-179,-174,-176,-173,-195,-195,-195,-195,-195,-195,-195,-287,-287,-439,-434,-492,-491,-525,-522,-485,-345,-347,-295,-522,-506,-553,-539,-799,-770,-778,-770,-747,-795,-767,-760,-1188,-1064,-926,-941,-1331,-1337,-1826,-1650,-2795,-3721,-4897,-2589]} 1. c4 {[%emt 0:03:44]} c6 {[%emt 0:00:16]} 2. Nf3 {[%emt 0:01:04]} Nf6 {[%emt 0:00:16]} 3. b3 {[%emt 0:00:15]} d5 {[%emt 0:00:39]} 4. Bb2 {[%emt 0:00:20]} Bf5 {[%emt 0:00:45]} 5. g3 {[%emt 0:01:20]} e6 {[%emt 0:00:18]} 6. Bg2 {[%emt 0:00:16]} Nbd7 {[%emt 0:00:20]} 7. O-O {[%emt 0:00:52]} Be7 {[%emt 0:00:13]} 8. Nc3 {[%emt 0:00:41]} h6 {[%emt 0:00:21]} 9. d3 {[%emt 0:02:42]} O-O {[%emt 0:00:45]} 10. Qc2 {[%emt 0:02:29]} Bh7 {[%emt 0:04:31] A12: English Opening: 1...c6 with b3 by White.} 11. e4 {[%emt 0:04:56]} dxe4 {[%emt 0:05:32]} 12. dxe4 {[%emt 0:00:35]} Qc7 {[%emt 0:01:55]} 13. Qe2 {[%emt 0:07:08]} e5 {[%emt 0:03:54]} 14. Nh4 {[%emt 0:01:07]} Rfe8 $146 {[%emt 0:00:13]} ({Predecessor:} 14... Rad8 15. f4 exf4 16. gxf4 Nxe4 17. Nxe4 Bxe4 18. Bxe4 Bxh4 19. Bxg7 Kxg7 20. Qg4+ Kh8 21. Qxh4 Qd6 22. Rad1 Qf6 23. Qh5 Qg7+ 24. Kh1 Nf6 25. Qf3 {½-½ Bartczak,K (1966)-Ostrowski,P (2092) Ehrenfeuchts Memorial U18 8th 2007 (5.2)}) 15. Nf5 {[%emt 0:05:33]} Bf8 {[%emt 1:18:02]} 16. Kh1 {[%emt 0:04:05]} Nc5 {[%emt 0:01:00]} 17. Rad1 {[%emt 0:05:58]} Bg6 {[%emt 0:23:09]} 18. Nb1 {[%emt 0:09:26]} Bh5 {[%emt 0:54:47]} 19. f3 {[%emt 0:00:35]} Bg6 {[%emt 0:00:09]} 20. Qc2 {[%emt 0:04:16]} a5 {[%emt 0:06:27]} 21. Bc3 {[%emt 0:02:35]} Rad8 {[%emt 0:04:13]} 22. Rfe1 {[%emt 0:06:14]} Ne6 {[%emt 0:05:04]} 23. Qb2 {[%emt 0:01:22]} Nd7 {[%emt 0:00:58]} 24. Rd2 {[%emt 0:03:42]} f6 {[%emt 0:00:17]} 25. Red1 {[%emt 0:00:55]} Ndc5 {[%emt 0:00:01]} 26. Ne3 {[%emt 0:10:58]} b6 {[%emt 0:04:26]} 27. Kg1 {[%emt 0:04:11]} h5 {[%emt 0:00:10]} 28. Nf5 {[%emt 0:01:08]} Bf7 {[%emt 0:00:19]} 29. Rxd8 {[%emt 0:00:43]} Rxd8 {[%emt 0:00:06]} 30. Rxd8 {[%emt 0:03:37]} Qxd8 {[%emt 0:00:01]} 31. Qd2 {[%emt 0:00:40]} Qd3 {[%emt 0:00:01]} 32. Qxd3 {[%emt 0:02:39]} Nxd3 {[%emt 0:00:01]} 33. Bd2 {[%emt 0:00:48]} Kh7 {[%emt 0:38:56]} (33... g6 $17 34. Bf1 Nb4 35. Bxb4 axb4 (35... Bxb4 36. Nh6+ Kg7 37. Nxf7 $17)) 34. Bf1 $15 {[%emt 0:03:43]} Nb4 {[%emt 0:01:08]} 35. Bxb4 {[%emt 0:05:32]} axb4 {[%emt 0:03:19]} 36. Be2 {[%emt 0:01:04]} g6 {[%emt 0:00:57]} 37. Nh4 {[%emt 0:00:20]} Nd4 {[%emt 0:02:06]} 38. Bd1 {[%emt 0:00:20]} Be6 {[%emt 0:01:34]} ({Black should play} 38... b5 39. cxb5 Nxb5 (39... cxb5 40. Ng2 $15)) 39. Kf2 {[%emt 0:01:05]} (39. Ng2 $17) 39... Bc5 $19 {[%emt 0:00:10]} 40. Ke1 {[%emt 0:00:37]} Bh3 {[%emt 0:00:05]} 41. Nd2 {[%emt 0:00:34]} Ne6 {[%emt 0:06:41]} 42. Be2 {[%emt 0:00:21]} Be3 {[%emt 0:00:08]} 43. Nb1 {[%emt 0:00:30]} Nd4 {[%emt 0:01:28]} 44. Bf1 {[%emt 0:00:21]} Be6 {[%emt 0:00:40]} 45. Bd3 {[%emt 0:00:37]} Kg7 {[%emt 0:02:56]} 46. Bf1 {[%emt 0:00:57]} (46. Kd1 $142) 46... g5 $19 {[%emt 0:03:46]} 47. Ng2 {[%emt 0:00:16]} (47. Nf5+ $142 Nxf5 (47... Bxf5 $2 48. exf5 Nxf3+ 49. Ke2 $19) 48. exf5 Bxf5 49. Nd2) 47... Nxf3+ $19 {[%emt 0:00:37]} 48. Ke2 {[%emt 0:00:15]} Bc5 {[%emt 0:01:51]} (48... Nxh2 49. Nxe3 Kg6 50. Nd2 $18) 49. Ne3 {[%emt 0:00:28]} Nxh2 {[%emt 0:01:16]} 50. Bg2 {[%emt 0:00:17]} Kf7 {[%emt 0:02:47]} 51. Nf5 {[%emt 0:00:22]} Kg6 {[%emt 0:05:42]} 52. Nd2 $2 {[%emt 0:00:10]} (52. Bh3 {was the only defense.}) 52... Ng4 {[%emt 0:00:24]} 53. Bf3 {[%emt 0:00:29]} Nh6 {[%emt 0:00:09]} 54. Bxh5+ {[%emt 0:00:15]} Kxh5 {[%emt 0:00:20]} 55. Ng7+ {[%emt 0:00:13]} Kg4 {[%emt 0:00:06]} 56. Nxe6 {[%emt 0:00:11]} Kxg3 {[%emt 0:00:28]} 57. Ng7 {[%emt 0:00:36]} Be7 {[%emt 0:00:52]} 58. Ke3 {[%emt 0:02:01]} g4 {[%emt 0:00:21]} 59. Nf1+ {[%emt 0:00:14]} Kh4 {[%emt 0:06:33]} 60. Kf2 {[%emt 0:00:14]} Kh3 {[%emt 0:01:00]} 61. Nh5 {[%emt 0:00:20]} f5 {[%emt 0:00:24]} 62. exf5 {[%emt 0:01:07]} Nxf5 {[%emt 0:00:30]} 63. Nd2 {[%emt 0:00:52]} Kh4 {[%emt 0:00:29]} 0-1

[Event "1000GM Schev-G2 March 2024"]
[Site "Santa Clara"]
[Date "2024.03.10"]
[Round "3.5"]
[White "Zhou, Ruoyu"]
[Black "Filgueiras, Nathan Felipe"]
[Result "0-1"]
[ECO "B32"]
[WhiteElo "2168"]
[BlackElo "2316"]
[Annotator "RC"]
[PlyCount "105"]
[EventDate "2024.03.06"]
[EventType "schev"]
[EventCountry "USA"]
[SourceTitle "playchess.com"]
[Source "ChessBase"]
[SourceQuality "1"]
[TimeControl "5400+30"]

1. e4 {[%emt 0:00:40]} c5 {[%emt 0:00:07]} 2. Nf3 {[%emt 0:00:11]} Nc6 {[%emt 0:00:03]} 3. d4 {[%emt 0:00:16]} cxd4 {[%emt 0:00:06]} 4. Nxd4 {[%emt 0:00:13]} e5 {[%emt 0:00:05]} 5. Nb5 {[%emt 0:00:14]} d6 {[%emt 0:00:08]} 6. N1c3 {[%emt 0:00:19]} a6 {[%emt 0:00:08]} 7. Na3 {[%emt 0:00:24]} Be6 {[%emt 0:00:12]} 8. Nc4 {[%emt 0:00:23]} Rb8 {[%emt 0:00:08]} 9. Ne3 {[%emt 0:04:28]} Nf6 {[%emt 0:03:48]} 10. Bd3 {[%emt 0:01:13]} g6 {[%emt 0:00:13]} 11. O-O {[%emt 0:02:08]} Bg7 {[%emt 0:00:22]} 12. a3 {[%emt 0:01:34]} O-O {[%emt 0:00:59]} 13. Ncd5 {[%emt 0:15:21]} Bxd5 {[%emt 0:01:13]} 14. exd5 {[%emt 0:03:13]} Ne7 {[%emt 0:00:31]} 15. c4 {[%emt 0:00:57]} Nd7 {[%emt 0:04:32]} 16. Rb1 {[%emt 0:01:50]} f5 {[%emt 0:05:47]} 17. f3 {[%emt 0:01:37]} h5 {[%emt 0:13:37]} 18. b4 {[%emt 0:03:16]} f4 {[%emt 0:00:45]} 19. Nc2 {[%emt 0:00:22]} Nf5 {[%emt 0:00:14]} 20. Qe1 {[%emt 0:06:23]} Bf6 {[%emt 0:09:32]} 21. Bxf5 {[%emt 0:04:24]} gxf5 {[%emt 0:00:05]} 22. Qe2 {[%emt 0:02:32]} b5 {[%emt 0:03:37]} 23. Qd3 {[%emt 0:01:31]} Bg7 {[%emt 0:01:04]} 24. Bb2 {[%emt 0:04:43]} Qb6+ {[%emt 0:04:18]} 25. Kh1 {[%emt 0:00:50]} Rbc8 {[%emt 0:00:20]} 26. cxb5 {[%emt 0:02:25]} Qxb5 {[%emt 0:00:15]} 27. Qxb5 {[%emt 0:00:51]} axb5 {[%emt 0:00:02]} 28. Na1 {[%emt 0:00:58]} Nb6 {[%emt 0:02:27]} 29. Nb3 {[%emt 0:00:43]} Rc2 {[%emt 0:02:38]} 30. Rfc1 {[%emt 0:01:29]} Rfc8 {[%emt 0:01:49]} 31. Na5 {[%emt 0:03:34]} Nxd5 {[%emt 0:01:27]} 32. Rxc2 {[%emt 0:03:07]} Rxc2 {[%emt 0:00:05]} 33. g3 {[%emt 0:01:19]} Kf7 {[%emt 0:02:58]} 34. gxf4 {[%emt 0:00:51]} Nxf4 {[%emt 0:00:11]} 35. a4 {[%emt 0:01:20]} bxa4 {[%emt 0:01:08]} 36. b5 {[%emt 0:00:35]} Nd5 {[%emt 0:00:50]} 37. Ba3 {[%emt 0:00:33]} Nb6 {[%emt 0:05:21]} 38. Bxd6 {[%emt 0:00:47]} Ke6 {[%emt 0:00:40]} 39. Ba3 {[%emt 0:00:38]} e4 {[%emt 0:04:22]} 40. fxe4 {[%emt 0:00:40]} fxe4 {[%emt 0:00:02]} 41. Re1 {[%emt 0:00:55]} Bc3 {[%emt 0:11:30]} 42. Nc6 {[%emt 0:02:46]} Rxh2+ {[%emt 0:02:18]} 43. Kxh2 {[%emt 0:00:13]} Bxe1 {[%emt 0:00:02]} 44. Bc5 {[%emt 0:10:16]} Nd7 {[%emt 0:00:45]} 45. Ba3 {[%emt 0:00:35]} Kd5 {[%emt 0:01:09]} 46. Kg2 {[%emt 0:00:55]} Kc4 {[%emt 0:01:05]} 47. Kf1 {[%emt 0:01:00]} Bc3 {[%emt 0:00:19]} 48. Ne7 {[%emt 0:00:48]} Bb4 {[%emt 0:01:24]} 49. Bxb4 {[%emt 0:00:20]} Kxb4 {[%emt 0:00:04]} 50. Nd5+ {[%emt 0:00:34]} Kb3 {[%emt 0:00:20]} 51. Nf4 {[%emt 0:01:08]} a3 {[%emt 0:00:13]} 52. Ne2 {[%emt 0:00:12]} Kb2 {[%emt 0:00:14]} 53. Kg1 {[%emt 0:18:26]} 0-1

[Event "1000GM Schev-G2 March 2024"]
[Site "Santa Clara"]
[Date "2024.03.10"]
[Round "4.1"]
[White "Stopa, Jacek"]
[Black "Tang, Dylan"]
[Result "1/2-1/2"]
[ECO "A13"]
[WhiteElo "2335"]
[BlackElo "2152"]
[Annotator "TA"]
[PlyCount "92"]
[EventDate "2024.03.06"]
[EventType "schev"]
[EventCountry "USA"]
[SourceTitle "playchess.com"]
[Source "ChessBase"]
[SourceQuality "1"]
[TimeControl "5400+30"]

{[%evp 9,92,9,7,9,8,-7,0,-16,-2,-13,-11,-34,-26,-49,-12,-39,21,26,18,25,21,11,11,-2,33,19,19,23,21,33,29,2,13,12,23,8,18,7,12,17,19,22,23,26,35,25,30,36,103,98,100,25,27,31,27,27,67,67,67,67,67,67,85,65,87,0,0,0,0,0,0,0,6,0,0,0,0,0,0,0,0,0,0,0,0]} 1. Nf3 {[%emt 0:00:40]} Nf6 {[%emt 0:04:11]} 2. c4 {[%emt 0:00:13]} e6 {[%emt 0:00:05]} 3. g3 {[%emt 0:07:04]} d5 {[%emt 0:00:55]} 4. Bg2 {[%emt 0:00:08]} dxc4 {[%emt 0:00:38]} 5. Qa4+ {[%emt 0:00:29]} Bd7 {[%emt 0:00:21]} 6. Qxc4 {[%emt 0:00:07]} c5 {[%emt 0:00:07]} 7. d3 {[%emt 0:01:44]} Nc6 {[%emt 0:03:36] Lässt Ne5 nicht zu} 8. O-O {[%emt 0:01:47]} Rc8 {[%emt 0:03:00]} 9. Nc3 {[%emt 0:03:52]} Be7 {[%emt 0:02:06]} 10. a4 {[%emt 0:02:01]} O-O {[%emt 0:08:05]} 11. Bg5 {[%emt 0:04:51]} Qb6 {[%emt 0:07:27]} 12. Qb5 {[%emt 0:02:40]} Na5 {[%emt 0:07:40]} ({Günstiger ist} 12... Qc7 $15 13. a5 Rfd8) 13. Qxb6 $11 {[%emt 0:00:18]} axb6 {[%emt 0:00:07]} 14. Ne5 {[%emt 0:02:51]} Bc6 {[%emt 0:05:39]} 15. Bxc6 {[%emt 0:10:36]} bxc6 {[%emt 0:01:45]} 16. Bxf6 {[%emt 0:03:54]} Bxf6 {[%emt 0:00:32]} 17. Nd7 {[%emt 0:00:33][%csl LRb6,LRf8]} Rfd8 {[%emt 0:00:15]} 18. Nxf6+ {[%emt 0:00:08]} gxf6 {[%emt 0:00:08]} 19. Rfb1 {[%emt 0:04:04]} Rd4 {[%emt 0:02:34]} 20. Ne4 {[%emt 0:01:26]} Kg7 {[%emt 0:04:06]} 21. b3 {[%emt 0:00:54]} Rb4 {[%emt 0:05:12]} 22. Nd2 {[%emt 0:00:05]} f5 {[%emt 0:00:10]} 23. Kf1 {[%emt 0:00:43]} h5 {[%emt 0:01:58]} 24. Ke1 {[%emt 0:01:03]} h4 {[%emt 0:00:22]} 25. Kd1 {[%emt 0:00:06]} hxg3 {[%emt 0:00:07]} 26. hxg3 {[%emt 0:00:04]} Rh8 {[%emt 0:00:23]} 27. Kc2 {[%emt 0:00:08]} Rh2 {[%emt 0:42:31]} 28. Rf1 {[%emt 0:00:07]} f4 {[%emt 0:00:00]} (28... e5 $14) 29. gxf4 $16 {[%emt 0:03:01]} Rxf4 {[%emt 0:00:00] [#]} 30. Nf3 {[%emt 0:00:04]} ({Vorzuziehen ist} 30. Nc4 $1 $16) 30... Rg2 $11 {[%emt 0:00:00]} 31. Rg1 {[%emt 0:00:06]} Rxg1 {[%emt 0:00:00]} 32. Rxg1+ $14 {[%emt 0:00:03][%mdl 4096] Endspiel. KRN-KRN} Kf6 {[%emt 0:00:00]} 33. Rg8 {[%emt 0:01:59]} Rb4 {[%emt 0:00:00]} 34. Nd2 {[%emt 0:00:08]} Ke7 $1 {[%emt 0:00:00]} 35. Ra8 {[%emt 0:04:29]} f5 {[%emt 0:00:00]} 36. Ra7+ {[%emt 0:02:30]} Kd6 {[%emt 0:00:00]} 37. Nc4+ {[%emt 0:03:35]} ({Besser ist} 37. e3 $16) 37... Nxc4 $11 {[%emt 0:00:00] Die Stellung ist ausgeglichen.} 38. dxc4 {[%emt 0:02:11] [#] Droht Rb7 und aus. KR-KR} b5 $1 {[%emt 0:00:00]} 39. Kc3 {[%emt 0:03:48] Droht stark axb5.} bxc4 {[%emt 0:00:00]} 40. bxc4 {[%emt 0:00:01]} Rb1 {[%emt 0:00:00]} 41. f4 {[%emt 0:00:38]} Re1 {[%emt 0:00:00]} 42. Kd2 {[%emt 0:00:14]} Ra1 {[%emt 0:00:00]} 43. a5 {[%emt 0:00:49]} Ra2+ {[%emt 0:00:00]} 44. Kd3 {[%emt 0:02:28]} Ra3+ {[%emt 0:00:00]} 45. Kd2 {[%emt 0:00:35]} Ra2+ {[%emt 0:00:00]} 46. Kd3 {[%emt 0:00:03]} Ra3+ {[%emt 0:00:00] Gewichteter Fehlerwert: Weiß=0.11 (sehr präzise) /Schwarz=0.10 (sehr präzise) .  Fehler:       	Weiß=2     	Schwarz=2     Ungenau:       	Weiß=2     	Schwarz=3     OK:         	Weiß=15    	Schwarz=13    Bester:       	Weiß=2     	Schwarz=2     Stark:        	---       	Schwarz=2} 1/2-1/2

[Event "1000GM Schev-G2 March 2024"]
[Site "Santa Clara"]
[Date "2024.03.10"]
[Round "4.2"]
[White "Figueredo Losada, Leonel"]
[Black "Pullela, Sricharan"]
[Result "1-0"]
[ECO "C05"]
[WhiteElo "2325"]
[BlackElo "2114"]
[Annotator "TA"]
[PlyCount "53"]
[EventDate "2024.03.06"]
[EventType "schev"]
[EventCountry "USA"]
[SourceTitle "playchess.com"]
[Source "ChessBase"]
[SourceQuality "1"]
[TimeControl "5400+30"]

{[%evp 13,53,17,24,20,23,20,37,29,37,23,73,60,61,64,130,140,136,145,137,110,143,93,666,675,708,708,695,681,629,570,793,737,29986,29987,29993,29994,29994,29995,29995,29996,29997,-180]} 1. e4 {[%emt 0:03:26]} e6 {[%emt 0:00:22]} 2. d4 {[%emt 0:00:04]} d5 {[%emt 0:00:03]} 3. Nd2 {[%emt 0:00:13]} Nf6 {[%emt 0:00:05]} 4. e5 {[%emt 0:00:04]} Nfd7 {[%emt 0:00:04]} 5. f4 {[%emt 0:00:05]} c5 {[%emt 0:00:13]} 6. c3 {[%emt 0:00:04]} Nc6 {[%emt 1:32:43]} 7. Ndf3 a5 {[%emt 0:00:00][%cal Ba7a5,Ba5a4][%mdl 32]} 8. Bd3 {[%emt 0:03:50]} cxd4 {[%emt 0:00:00]} 9. cxd4 {[%emt 0:00:06]} Nb6 {[%emt 0:00:00]} 10. Ne2 {[%emt 0:00:24] White is slightly better.} Bd7 {[%emt 0:00:00]} 11. O-O {[%emt 0:00:20]} Rc8 {[%emt 0:02:30]} (11... Be7 $11 {keeps the balance.}) 12. a3 {[%emt 0:31:06]} a4 13. Rb1 {[%emt 0:12:18]} Na5 {[#]} (13... Be7 $14) 14. f5 $1 $16 {[%emt 0:00:50][%mdl 512]} exf5 {[#]} 15. g4 $1 {[%emt 0:45:10][%mdl 512]} f4 {[%emt 0:00:00]} (15... g6 16. gxf5) 16. Nxf4 {[%emt 0:00:00][%cal Oe5e6] Black must now prevent e6!} (16. Bxf4 $6 Nbc4 $14) 16... Be7 {[%emt 0:00:00] [#]} 17. e6 {[%emt 0:00:00]} (17. Qe2 $142 $1) 17... fxe6 $2 {[%emt 0:00:00][%mdl 8192] [#] Black cannot hold the game after this.} (17... Bxe6 $16 18. Nxe6 (18. Qe1 Nbc4 $11) 18... fxe6) 18. Ng6 $1 $18 {[%emt 0:01:30][%mdl 512]} hxg6 {[%emt 0:00:00]} (18... Bf6 19. Nxh8) 19. Bxg6+ {[%emt 0:00:00]} Kf8 {[%emt 0:00:00][%cal Be8f8,Bf8g7,Bg7g8,Bg8h8][%mdl 32]} 20. Ne5+ {[%emt 0:00:00]} Bf6 {[%emt 0:00:00]} 21. g5 {[%emt 0:00:00]} Nb3 {[%emt 0:05:00]} 22. gxf6 {[%emt 0:00:00]} Nxc1 {[%emt 0:00:30]} 23. fxg7+ {[%emt 0:00:00] White mates.} Kxg7 {[%emt 0:00:00]} 24. Rf7+ {[%emt 0:00:00]} (24. Rxc1 $2 Qg5+ 25. Qg4 (25. Kh1 $2 Rxh2+ 26. Kxh2 Rh8+ $19) 25... Qxg4+ (25... Qxc1 26. Bc2+ Kh6 27. Qg6#) 26. Nxg4 Rxc1 (26... Kxg6 $2 27. Ne5+ Kh5 28. Rxc8 $19) 27. Rxc1 Kxg6 $19) 24... Kg8 {[%emt 0:00:00]} 25. Bh7+ {[%emt 0:00:00]} (25. Rxc1 $2 {loses.} Qg5+ 26. Ng4 Rxc1 $19 (26... Qxc1 27. Nf6#)) 25... Rxh7 {[%emt 0:00:00]} 26. Qg4+ {[%emt 0:00:00]} Kh8 {[%emt 0:00:00]} 27. Rxh7+ {[%emt 0:00:00][%mdl 32768] Weighted Error Value: White=0.05 (flawless) /Black=0.82.  Loses game:     	---       	Black=1      Mistake:       	White=1     	Black=2      Inaccurate:     	---       	Black=1      OK:         	White=2     	Black=5      Best:        	---       	Black=1      Brilliant:      	White=3     	---       . Loss on time!?} 1-0

[Event "1000GM Schev-G2 March 2024"]
[Site "Santa Clara"]
[Date "2024.03.10"]
[Round "4.3"]
[White "Chiang, Jacob"]
[Black "Alarcon Bahamondez, Roberto Ignacio"]
[Result "1-0"]
[ECO "A17"]
[WhiteElo "2154"]
[BlackElo "2335"]
[Annotator "TA"]
[PlyCount "65"]
[EventDate "2024.03.06"]
[EventType "schev"]
[EventCountry "USA"]
[SourceTitle "playchess.com"]
[Source "ChessBase"]
[SourceQuality "1"]
[TimeControl "5400+30"]

{[%evp 9,65,0,5,0,0,0,0,0,0,10,0,7,27,39,14,-25,-22,-28,-34,-21,0,-12,10,0,0,0,47,43,75,65,88,89,78,79,131,127,127,133,136,129,160,152,196,180,210,217,194,196,332,315,344,197,460,468,469,456,29999,29991]} 1. c4 {[%emt 0:00:00]} e6 {[%emt 0:00:09]} 2. Nc3 {[%emt 0:00:34]} c5 {[%emt 0:00:30]} 3. Nf3 {[%emt 0:00:10]} Nf6 {[%emt 0:00:08]} 4. e3 {[%emt 0:01:27]} d5 {[%emt 0:01:36]} 5. cxd5 {[%emt 0:00:13]} exd5 {[%emt 0:00:31]} 6. d4 {[%emt 0:00:18]} c4 {[%emt 0:00:57]} 7. Be2 {[%emt 0:01:05]} Bb4 {[%emt 0:00:34]} 8. O-O {[%emt 0:01:10] The position is equal.} O-O {[%emt 0:00:21]} 9. Bd2 {[%emt 0:03:07]} Nc6 {[%emt 0:00:42]} 10. b3 {[%emt 0:02:33]} Bxc3 {[%emt 0:32:40]} 11. Bxc3 {[%emt 0:00:03]} b5 {[%emt 0:01:09]} 12. bxc4 {[%emt 0:00:45]} Ne4 {[%emt 0:03:28]} 13. Be1 {[%emt 0:01:19]} bxc4 {[%emt 0:04:25]} 14. Ne5 {[%emt 0:01:18]} Qc7 {[%emt 0:03:16]} 15. f3 {[%emt 0:02:23]} Nf6 {[%emt 0:01:43]} (15... Nd6 $5) 16. Bc3 {[%emt 0:04:08]} Re8 {[%emt 0:01:38]} 17. Qd2 {[%emt 0:09:34]} Ba6 {[%emt 0:03:45]} (17... Bf5 $11 {should be considered.}) 18. Bd1 $14 {[%emt 0:02:46]} Nxe5 {[%emt 0:03:11]} 19. dxe5 {[%emt 0:02:05]} Rxe5 {[%emt 0:00:29]} 20. Bxe5 {[%emt 0:00:28]} Qxe5 {[%emt 0:00:05]} 21. Qd4 {[%emt 0:06:03]} Qc7 {[%emt 0:17:53]} (21... Qxd4 $142 22. exd4 Ne8) 22. Bc2 {[%emt 0:01:26]} Re8 {[%emt 0:02:26]} 23. Rab1 {[%emt 0:59:05][%cal Ba1b1,Bb1b5,Bb5c5,Bc5c7][%mdl 32]} h5 {[%emt 0:01:00]} 24. Rfe1 {[%emt 0:00:00] White is more active.} Bc8 {[%emt 0:01:02]} 25. Rb5 {[%emt 0:00:00] Prevents Qa5} Bd7 {[%emt 0:01:06]} 26. Rc5 {[%emt 0:00:00]} Qb6 {[%emt 0:00:40]} 27. Rb1 {[%emt 0:00:00] Inhibits Qb4.} Qa6 {[%emt 0:00:56]} 28. a4 {[%emt 0:00:00]} h4 {[%emt 0:01:59]} (28... Qe6 $142 29. e4 Bc6 30. exd5 Bxd5) 29. Rc7 $18 {[%emt 0:00:00]} (29. Qxh4 Rxe3 30. Qd4 Re2 $16) 29... h3 {[%emt 0:03:51]} 30. g3 {[%emt 0:00:00]} (30. Qxa7 Qd6 $11) (30. Rxa7 $142 Qd6 31. Rb6) 30... Ra8 $2 {[%emt 0:03:17] [#]} (30... Qe6 31. g4 (31. Rxa7 Qxe3+ 32. Qxe3 Rxe3 $18) (31. Qxa7 Qe5 $11) 31... Qd6 (31... Qxe3+ $2 32. Qxe3 Rxe3 33. g5 $18) 32. Rxa7 (32. Qxa7 $2 Qe5 $19) 32... Nh7) 31. Rxd7 $1 {[%emt 0:00:00][%mdl 512]} Nxd7 {[%emt 0:00:18]} 32. Qxd5 {[%emt 0:00:00]} Nb8 {[%emt 0:06:01]} (32... Qc8 $18 33. Rb7 Qe8 (33... Ne5 $2 34. Re7 $18) 34. Rxd7 Qxe3+ 35. Kf1 Rf8) 33. Qxa8 {[%emt 0:00:00] Weighted Error Value: White=0.13 (very precise) /Black=0.57.  Mistake:       	White=1     	Black=5      Inaccurate:     	White=1     	Black=1      OK:         	White=14    	Black=6      Best:        	White=1     	---} 1-0